Cogmind - Beta 10.2 @@@ ROGUE MODE // 2021.06.16 @ 16:59:00 // Halloween2019/Abominations Player: sentrybuster Result: Smashed by cave-in Performance ------------- Evolutions (0) 0 Regions Visited (1) 200 Robots Destroyed (8) 40 Value Destroyed (364) 364 Prototype IDs (0) 0 Alien Tech Used (0) 0 Bonus (0) 0 TOTAL SCORE: 604 Bonus ------- None Cogmind --------- Core Integrity 0/250 Matter 300/300 Energy 98/100 System Corruption 0% Temperature Cool (6) Movement Core (50) Location -10/Materials Parts ------- > --- POWER (1) -------- (None) > --- PROPULSION (2) --- Light Treads Light Treads > --- UTILITY (2) ------ (None) > --- WEAPON (2) ------- (None) > --- INVENTORY (4) ---- Ion Engine Light Treads Small Storage Unit Peak State ------------ > --- POWER ------------ Light Ion Engine > --- PROPULSION ------- Aluminum Leg Aluminum Leg > --- UTILITY ---------- Small Storage Unit Improved Terrain Scanner > --- WEAPON ----------- Small Laser Light Assault Rifle > --- INVENTORY -------- Ion Engine Light Treads Light Treads Light Assault Rifle [Rating: 8] Favorites ----------- Power Light Ion Engine Engine Light Ion Engine Propulsion Light Treads Treads Light Treads Leg Aluminum Leg Utility Improved Terrain Scanner Device Improved Terrain Scanner Storage Large Storage Unit Weapon Light Assault Rifle Energy Gun Small Laser Ballistic Gun Light Assault Rifle Launcher Grenade Launcher Build | -11 -10 ------- Run | Scr Mat Slots Evolved . | . . Power . | . . Propulsion . | . . Utility . | . . Weapon . | . . Parts Attached 16 | 7 9 Power 1 | 1 . Engine 1 | 1 . Core . | . . Reactor . | . . Propulsion 7 | 2 5 Treads 4 | . 4 Leg 3 | 2 1 Wheel . | . . Hover . | . . Flight . | . . Utility 3 | 2 1 Device 1 | 1 . Storage 2 | 1 1 Processor . | . . Hackware . | . . Protection . | . . Artifact . | . . Weapon 5 | 2 3 Energy Gun 1 | 1 . Energy Cannon . | . . Ballistic Gun 3 | 1 2 Ballistic Cannon . | . . Launcher 1 | . 1 Special Weapon . | . . Impact Weapon . | . . Slashing Weapon . | . . Piercing Weapon . | . . Special Melee Weapon . | . . Unidentified Prototypes . | . . Parts Lost 8 | . 8 Power 1 | . 1 Propulsion 2 | . 2 Utility 1 | . 1 Weapon 4 | . 4 Highest Loss Streak 8 | . 8 Average Slot Usage (%) 87 | . 87 Engine 11 | . 11 Treads 21 | . 21 Leg 5 | . 5 Device 11 | . 11 Storage 12 | . 12 Energy Gun 9 | . 9 Ballistic Gun 14 | . 14 Naked Turns . | . . Heaviest Build 22 | 10 22 Greatest Support 40 | 20 40 Greatest Overweight (x) 1 | . 1 Average Overweight (x) . | . . Largest Inventory Capacity 10 | 6 10 Average Capacity 8 | 5 8 Most Carried 7 | 4 7 Average Carried 5 | 2 5 Final Capacity 6 | 6 4 Final Carried 4 | 4 3 Class Distribution -------------------- 100% | Mutant Dominant Class ---------------- Mutant | -10/Materials Resources | -11 -10 ----------- Run | Scr Mat Matter Collected 392 | 261 131 Remotely . | . . Salvage Created 265 | 47 218 Parts 24 | 8 16 Haulers Intercepted . | . . Recyclers Shooed . | . . Parts Field Recycled . | . . Retrieved Matter . | . . Parts Self-Destructed . | . . Prevented . | . . Kills | -11 -10 ------- Run | Scr Mat Combat Hostiles Destroyed 5 | . 5 Melee 1 | . 1 Guns 3 | . 3 AOE 1 | . 1 Classes Destroyed 3 | 1 2 Tunneler 2 | 2 . Abomination 5 | . 5 Anomaly 1 | . 1 Best Kill Streak 3 | 2 3 Combat Bots Only 3 | . 3 Max Kills in Single Turn 1 | 1 1 Gunslinging . | . . Exploded 1 | . 1 Melee 1 | . 1 Uniques/NPCs Destroyed . | . . Combat | -11 -10 -------- Run | Scr Mat Damage Taken 990 | . 990 Core 267 | . 267 Absorbed by Shields . | . . Core Remaining (%) 100 | 100 . Volleys Fired 39 | 3 36 Largest 2 | 2 2 Hottest 60 | 60 60 Shots Fired 75 | 6 69 Gun 73 | 6 67 Cannon . | . . Launcher 2 | . 2 Special . | . . Kinetic 50 | 3 47 Thermal 23 | 3 20 Explosive 2 | . 2 Electromagnetic . | . . Robot Hit Streak 28 | 4 28 Robot Miss Streak 3 | . 3 Penetration Max . | . . Secondary Targets . | . . Shots Hit Robots 60 | 4 56 Core Hits 25 | 3 22 Critical Hits . | . . Critical Kills . | . . Critical Parts Destroyed . | . . Melee Attacks . | . . Impact . | . . Slashing . | . . Piercing . | . . Sneak Attacks . | . . Combat Hostiles . | . . Follow-up Attacks . | . . Damage Inflicted 653 | 38 615 Guns 542 | 38 504 Cannons . | . . Explosions 105 | . 105 Melee . | . . Ramming 6 | . 6 Kinetic 307 | 7 300 Thermal 235 | 31 204 Explosive 105 | . 105 Electromagnetic . | . . Impact . | . . Slashing . | . . Piercing . | . . Highest Corruption . | . . Average Corruption . | . . Corruption Purged . | . . Overload Shots . | . . Overflow Damage 44 | . 44 Projectiles . | . . Explosions 44 | . 44 Melee . | . . Knockbacks 1 | . 1 Impact 1 | . 1 Kinetic . | . . Secondary . | . . Self-Inflicted Damage 80 | . 80 Shots 2 | . 2 Rammed 3 | . 3 Targets Rammed 3 | . 3 Kicked . | . . Crushed . | . . Highest Temperature 206 | 40 206 Average Temperature 78 | 19 84 Received Heat Transfer 240 | . 240 Siege Activations . | . . Robots Corrupted . | . . Combat Hostiles . | . . Parts Fried . | . . Impact Corruptions . | . . Robots Melted . | . . Combat Hostiles . | . . Parts Melted . | . . Heat Transferred 190 | 75 115 Parts Sabotaged . | . . Parts Stolen . | . . Parts Stripped . | . . Power Chain Reactions . | . . Missiles Intercepted . | . . Alert | -11 -10 ------- Run | Scr Mat Peak Influence 15 | 10 15 Initial 6 | . 6 Average 4 | 2 5 Maximum Alert Level . | . . Low Security (%) 100 | 100 100 Level 1 . | . . Level 2 . | . . Level 3 . | . . Level 4 . | . . Level 5 . | . . High Security . | . . Max Security . | . . Squads Dispatched 3 | . 3 Investigation 2 | . 2 Extermination . | . . Reinforcement 1 | . 1 Assault . | . . Garrison . | . . Intercept . | . . Construction Impeded . | . . Haulers Reinforced . | . . Stealth | -11 -10 --------- Run | Scr Mat Distress Signals . | . . Communications Jammed . | . . Distress Signals . | . . Times Spotted 11 | . 11 Peak Tracking Total 7 | . 7 Tactical Retreats . | . . Traps | -11 -10 ------- Run | Scr Mat Traps Triggered . | . . Indirectly . | . . Trap Hack Attempts . | . . Triggered . | . . Disarmed . | . . Reprogrammed . | . . Reused . | . . Traps Extracted . | . . Installed . | . . Triggered . | . . Machines | -11 -10 ---------- Run | Scr Mat Machines Disabled . | . . Max in Single Turn . | . . Machines Sabotaged . | . . Garrisons Compromised . | . . Overloaded Fab Kills . | . . Fab Network Shutdowns . | . . Hacking | -11 -10 --------- Run | Scr Mat Machines Accessed 1 | . 1 Terminals 1 | . 1 Fabricators . | . . Repair Stations . | . . Recycling Units . | . . Scanalyzers . | . . Garrison Access . | . . Total Hacks 4 | . 4 Successful 4 | . 4 Failed . | . . Catastrophic . | . . Database Lockouts . | . . Manual 3 | . 3 Terminals 4 | . 4 Fabricators . | . . Repair Stations . | . . Recycling Units . | . . Scanalyzers . | . . Garrison Access . | . . Terminal Hacks 3 | . 3 Terminal Index 1 | . 1 Alert Level 1 | . 1 Zone Layout 1 | . 1 Fabricator Hacks . | . . Repair Station Hacks . | . . Recycling Unit Hacks . | . . Scanalyzer . | . . Garrison Access Hacks . | . . Unauthorized Hacks 1 | . 1 Terminals 1 | . 1 Track 1 | . 1 Fabricators . | . . Repair Stations . | . . Recycling Units . | . . Scanalyzers . | . . Garrison Access . | . . Data Cores Recovered . | . . Used . | . . Hacking Detections 1 | . 1 Full Trace Events . | . . Feedback Events . | . . Feedback Blocked . | . . Robot Schematics Acquired . | . . Robots Built . | . . Matter . | . . Time . | . . Total Robot Build Rating . | . . Part Schematics Acquired . | . . Parts Built . | . . Matter . | . . Time . | . . Total Part Build Rating . | . . Parts Repaired . | . . Time . | . . Parts Recycled . | . . Recycled Matter . | . . Retrieved Matter . | . . Retrieved Components . | . . Parts Scanalyzed . | . . Part Schematics Acquired . | . . Parts Damaged . | . . Bothacking | -11 -10 ------------ Run | Scr Mat Used RIF Installer . | . . Robots Hacked . | . . Non-combat . | . . Combat . | . . Robot Hacks Applied . | . . Relay Couplers Released . | . . Robots Rewired . | . . Allies Hacked . | . . Hacks Repelled . | . . Allies | -11 -10 -------- Run | Scr Mat Total Allies . | . . Largest Group . | . . Highest-Rated Group . | . . Highest-Rated Ally . | . . Total Orders . | . . Ally Attacks . | . . Total Damage . | . . Kills . | . . Allies Corrupted . | . . Allies Melted . | . . Intel | -11 -10 ------- Run | Scr Mat Robot Analysis Total . | . . Derelict Logs Recovered . | . . Drone Launches . | . . Drone Recoveries . | . . Exploration | -11 -10 ------------- Run | Scr Mat Turns Passed 340 | 80 260 Spaces Moved 172 | 49 123 Core 47 | 1 46 Treads 46 | . 46 Legs 79 | 48 31 Wheels . | . . Hover . | . . Flight . | . . Fastest Speed 50 | 50 50 Average Speed 112 | 118 110 Slowest Speed 160 | 120 160 Overloaded Moves . | . . Propulsion Burnouts . | . . Robots Hopped . | . . Cave-ins Triggered 1 | . 1 Exploration Rate (%) 21 | 3 40 Regions Visited 1 Branch Regions . Pre-discovered Areas . | . . Known Exits Taken . | . . Unknown Exits Taken 1 | 1 . Scrap Searched . | . . Spaces Dug . | . . Terrain Destroyed 6 | . 6 Melee . | . . Projectile . | . . AOE 6 | . 6 Terrain Rammed . | . . Walls Destroyed . | . . Machines Disabled . | . . Actions | -11 -10 --------- Run | Scr Mat Total 247 | 62 185 Wait 7 | . 7 Move 170 | 48 122 Hop . | . . Pick Up 8 | 4 4 Fast Attach 7 | 7 . Attach 5 | . 5 Detach 1 | . 1 Swap 4 | . 4 Drop 3 | . 3 Fire 39 | 3 36 Melee . | . . Ram . | . . Kick . | . . Crush 3 | . 3 Escape Stasis . | . . Rewire . | . . Trap . | . . Miscellaneous . | . . Route ------- -11/Scrapyard -10/Materials History --------- Turn | Location | Event 9 | -11/Scrapyard | Discovered new exit (range 15) 81 | -11/Scrapyard | Entered Materials 303 | -10/Materials | Core integrity fell below 50% 315 | -10/Materials | Core integrity fell below 20% 338 | -10/Materials | Build established: Mutant 338 | -10/Materials | Lost 8 parts (1p2n1u4w) 341 | -10/Materials | Crushed by falling debris 341 | -10/Materials | Smashed by cave-in Last Messages --------------- 00309_ Slammed into Lesser Abomination. 00309_ Lesser Abomination destroyed. 00310_ Acquired 10 matter. 00310_ Lgt. Ion Engine springs to life within a quantum being. 00311_ Lesser Abomination absorbs Wheel, Imp. Heat Sink. 00311_ Slammed into Lesser Abomination. 00311_ Lesser Abomination knocked back. 00312_ Slammed into Lesser Abomination. 00316_ Dropped Lrg. Storage Unit. 00318_ Lesser Abomination absorbs Hover Unit. 00319_ Lesser Abomination absorbs Lrg. Storage Unit. 00322_ Acquired 10 matter. 00326_ Unstable Anomaly suddenly flashes brightly. 00328_ Minor Abomination spits out Sml. Matter Pod. 00328_ Minor Abomination absorbs Med. Matter Pod. 00328_ Lesser Abomination absorbs Sml. Matter Pod. 00335_ The unstable cave ceiling collapses. 00339_ Lesser Abomination absorbs Terrain Scan Processor. 00341_ The unstable cave ceiling collapses. 00341_ Crushed by falling debris. Map ----- +----------------------------------------------------+ | ?????????????????????????????????????????????????? | | ?????????????????????????????????????????????????? | | ?????????????????????????????????????????????????? | | ?????????????????????????????????????????????????? | | ?????????????????????????????????????????????????? | | ?????????????????????????????????????????????????? | | ?????????????????????????????????????????????????? | | ?????????????????????????????????????????????????? | | ?????????????????????????????????????????????????? | | ?????????????????????????????????????????????????? | | ??????????????????????? ??????????????????????? | | ????????????????????? n??????????????????????? | | ??????????????????;;;;?;;; ??????????????????????? | | ????????????????;; ; ;n??????????????????????? | | ??????????????%% ; ; ; ??????????????????????? | | ?????????????? ; ; ; ??? #?????????????????? | | ????????????? ; % #;;% ?? #######???????????? | | ?????????????; ; ;; #???????????? | | ????????????;; ; ;;%"""" """" ###?????????? | | ????????????;;% ; ;; """" """" ; #?????????? | | ?????????????+ ; %;;%"""" """" ; #####?###?? | | ?????????????# ; ;; % A ; ### ### | | ?????????????# ; ;;;;%;;;;;;;; ## # # | | ?????????????# %; ; ; ; # | | ?????????? ; ;n ; ; ;; | | ?????????? ; ;;;;;;; @; ; | | ??????????;;;; ;; ####;;; ;% | | ??????????;;; ;######## ; # = | | ??????????? ????# # | | ???????????????????# % # | | ???????????????????# """"""" %+ ##### | | ???????????????????# """"""" # ###???? | | ???????????????????# """"""" % # #????? | | ???????????????????? """"""" % # ##????? | | ????????????????????????"""" # % % ???? | | ??????????????????????? % #% #??? | | ??????????????????????###### # % # """ #??? | | ???????????????????????????# % # """"" #??? | | ???????????????????????????# # """"" #??? | | ??????????????????????????? + """?? #??? | | ??????????????????????????## ???? #??? | | ???????????????????????????# ????????? | | ???????????????????????????# % ????????? | | ???????????????????????????# "" % ?????????? | | ???????????????????????????# Y" %?? ????????? | | ???????????????????????????# ?? %????????????? | | ???????????????????????????# ??? ?????????????? | | ????????????????????????????? ?????????????????? | | ?????????????????????????????????????????????#???? | | ?????????????????????????????????????????????????? | +----------------------------------------------------+ Best States ------------- Heat Dissipation 25 Energy Generation 10 Energy Capacity 125 Matter Stores 300 Matter Capacity 300 Sight Range 16 Terrain Scan Range 16 Terrain Scan Density 10 Evasion (%) 50 Recoil Reduction 2 Item Schematics ----------------- None Robot Schematics ------------------ None Fabricated ------------ Nothing Alien Tech Used ----------------- None Achievements -------------- None Challenges ------------ None Game ------ Seed StealthStasisGuard Manual? 0 Play Time 00:06:37 Cumulative 272.1 hours Start 2021.06.16 @ 16:52:55 End 2021.06.16 @ 16:59:00 Sessions 1 Manual Loads 0 Difficulty Rogue Special Mode Halloween2019/Abominations Game No. 364 Rogue 360 Adventurer 0 Explorer 4 Win Type - Total 5 Types 4/0/0/1/0/0/0/0/0 Lore% 80 Gallery% 89 Achievement% 62 Wizard Run 0 Options --------- ASCII 1 Keyboard 1 Movement Numpad Keybinds 0 Fullscreen 2 Font 16/K+Cog Map View 76x50 Tactical HUD 1 Map Filters NONE Filters NONE Steam 1 RUN: af48ba07-47bd-4290-a528-7f5850b69894